bitfinex-derivatives/quotes_ETHF0:USTF0_20250213
["timestamp","ask_amount","ask_price","bid_price","bid_amount"]
[1739477693260,0.75262,2657.0,2656.9,1.86323]
[1739477694759,0.75262,2657.0,2656.9,1.1106]
[1739477694965,0.75261,2657.1,2657.0,0.75259]
[1739477695866,1.1908,2657.3,2656.9,1.1106]
[1739477696264,1.1908,2657.3,2656.9,1.86322]
[1739477696265,0.75262,2657.0,2656.9,1.86322]
[1739477697067,0.75262,2657.0,2656.9,1.1106]
[1739477697467,0.75262,2657.0,2656.9,1.86324]
[1739477697968,0.75262,2657.0,2656.9,1.1106]
[1739477698270,0.75262,2657.0,2656.9,1.86324]
[1739477698468,1.1908,2657.3,2656.9,1.1106]
[1739477698668,0.75261,2657.1,2657.0,0.75258]
[1739477699264,1.1908,2657.3,2656.9,1.1106]
[1739477699462,0.7526,2657.2,2657.1,0.75256]
[1739477699661,0.6019,2657.3,2656.9,1.1106]
[1739477699869,0.75262,2657.1,2657.0,0.75259]
[1739477700269,0.75257,2657.3,2657.2,0.75254]
[1739477700472,0.75257,2657.3,2657.2,3.96034]
[1739477701266,0.75257,2657.3,2657.2,3.2078]
[1739477701479,0.75262,2657.0,2656.9,1.1106]
[1739477701969,0.74064681,2657.0,2656.9,1.86324]
[1739477702175,0.74064681,2657.0,2656.9,1.1106]
[1739477702766,6.5688204,2657.3,2656.6,0.5718]
[1739477702977,6.5688204,2657.3,2656.6,3.7796]
[1739477702978,0.7527,2656.7,2656.6,3.7796]
[1739477703176,0.7527,2656.7,2656.6,4.53231]
[1739477703371,0.75277,2656.5,2656.3,4.3127]
[1739477703578,2.99084,2656.9,2656.3,4.3127]
[1739477703579,0.75275,2656.6,2656.5,0.75274]
[1739477703873,1.1092,2656.9,2656.3,4.3127]
[1739477704075,0.75279,2656.4,2656.3,1.1049]
[1739477704272,0.75284,2656.2,2656.1,1.30887]
[1739477704980,0.75284,2656.3,2656.2,0.75283]
[1739477705176,5.2427804,2656.7,2656.1,0.556]
[1739477705370,5.2427804,2656.7,2656.2,0.75284]
[1739477705571,0.75281,2656.4,2656.1,0.556]
[1739477705878,0.75284,2656.2,2656.1,1.30885]
[1739477706073,0.75284,2656.3,2656.2,0.75283]
[1739477706478,1.88176,2656.7,2656.1,0.556]
[1739477706778,0.75284,2656.2,2656.1,0.556]
[1739477707278,0.557,2656.5,2656.3,0.75279]
[1739477707680,0.75279,2656.4,2656.3,3.96059]
[1739477707878,0.00288054,2656.8,2656.3,3.2078]
[1739477708084,0.75557054,2656.8,2656.7,0.7527]
[1739477708279,0.75555054,2656.8,2656.7,0.7527]
[1739477708486,0.00288054,2656.8,2656.7,0.7527]
[1739477708683,0.00288054,2656.8,2656.7,1.3131]
[1739477708883,0.75555054,2656.8,2656.7,1.3131]
[1739477709186,0.00288054,2656.8,2656.7,1.3131]
[1739477709380,0.75555054,2656.8,2656.7,1.3131]
[1739477709888,0.00288054,2656.8,2656.7,1.3131]
[1739477711789,0.75555054,2656.8,2656.7,1.3131]
[1739477712086,0.75555054,2656.8,2656.7,0.5604]
[1739477712587,0.75555054,2656.8,2656.7,1.3131]
[1739477712782,0.75555054,2656.8,2656.7,0.5604]
[1739477714792,0.7527,2656.7,2656.6,3.2078]
[1739477715088,1.9028,2656.7,2656.6,3.2078]
[1739477715289,0.7527,2656.7,2656.6,3.2078]
[1739477715491,0.75276,2656.6,2656.5,0.75275]
[1739477716182,0.75274,2656.7,2656.6,0.75271]
[1739477716983,0.75556054,2656.8,2656.7,0.7527]
[1739477717185,0.75555054,2656.8,2656.7,0.7527]
[1739477717785,0.75555054,2656.8,2656.7,3.9605]
[1739477718087,0.00288054,2656.8,2656.7,3.9605]
[1739477718287,0.00288054,2656.8,2656.7,4.5309]
[1739477721194,0.00288054,2656.8,2656.7,4.5309]
[1739477722091,0.75555054,2656.8,2656.7,3.9605]
[1739477723092,0.00288054,2656.8,2656.7,3.9605]
[1739477724290,0.75555054,2656.8,2656.7,3.9605]
[1739477725186,0.00288054,2656.8,2656.7,3.9605]
[1739477725793,0.75555054,2656.8,2656.7,3.9605]
[1739477726593,0.75555054,2656.8,2656.7,3.2078]
[1739477726787,0.75276,2656.5,2656.4,2.45467]
[1739477727097,0.75276,2656.5,2656.4,1.7019]
[1739477727692,0.75276,2656.5,2656.4,2.45468]
[1739477728093,1.32105,2656.6,2656.5,0.75276]
[1739477728293,1.32105,2656.6,2656.5,3.96056]
[1739477728592,0.75276,2656.5,2656.4,1.7019]
[1739477729297,0.75276,2656.5,2656.4,2.45468]
[1739477729687,0.75276,2656.5,2656.4,1.7019]
[1739477730296,0.75276,2656.5,2656.4,2.45468]
[1739477730682,0.75276,2656.5,2656.4,1.7019]
[1739477731096,0.75276,2656.5,2656.4,2.45468]
[1739477731298,0.75276,2656.5,2656.4,1.7019]
[1739477731599,0.75276,2656.5,2656.4,2.45468]
[1739477736798,0.75281,2656.4,2656.3,0.75277]
[1739477738697,0.75281,2656.3,2656.2,3.96062]
[1739477739695,0.75281,2656.3,2656.2,3.2078]
[1739477740102,0.75281,2656.3,2656.2,3.96064]
[1739477740296,0.75281,2656.3,2656.2,3.2078]
[1739477740803,0.75281,2656.3,2656.2,3.96064]
[1739477741603,3.3610204,2656.7,2656.2,3.2078]
[1739477741910,0.5984,2658.2,2658.1,0.7523]
[1739477742203,0.5713,2658.5,2658.4,0.75222]
[1739477742406,0.5984,2658.8,2658.4,6.5688204]
[1739477742602,1.35035,2659.4,2658.9,0.75207]
[1739477742808,1.35035,2659.4,2658.7,6.5688204]
[1739477742809,0.5984,2659.4,2659.1,3.3610204]
[1739477744007,0.75199,2659.3,2659.1,3.3610204]
[1739477744207,3.2078,2659.2,2658.8,3.3610204]
[1739477744412,0.75208,2658.9,2658.8,3.3610204]
[1739477745298,0.75213,2658.7,2658.5,3.3610204]
[1739477745912,0.75215,2658.7,2658.5,3.3610204]
[1739477746205,3.2078,2658.9,2658.5,3.3610204]
[1739477746708,0.75216,2658.6,2658.5,3.3610204]
[1739477746911,0.75212,2658.8,2658.5,3.3610204]
[1739477747509,3.2078,2659.2,2658.5,3.3610204]
[1739477747808,3.2078,2659.2,2658.5,4.1132004]
[1739477748009,3.2078,2659.2,2658.8,3.3610204]
[1739477748206,0.75208,2658.9,2658.8,3.3610204]
[1739477748609,0.75213,2658.7,2658.5,3.3610204]
[1739477748903,0.5822,2659.3,2658.3,3.2078]
[1739477748904,3.2078,2658.9,2658.3,3.2078]
[1739477749104,0.5927,2658.8,2658.3,6.5688204]
[1739477749305,0.75222,2658.4,2658.3,3.3610204]
[1739477749508,0.75226,2658.3,2658.0,7.1421204]
[1739477749705,0.7523,2658.1,2658.0,6.5688204]
[1739477750016,3.2078,2658.6,2658.0,6.5688204]
[1739477750207,0.5584,2658.5,2658.0,6.5688204]
[1739477750406,3.3610204,2658.1,2657.9,1.85e-06]
[1739477750604,3.7667,2658.0,2657.0,3.2078]
[1739477750908,3.3610204,2657.7,2657.0,3.2078]
[1739477751107,0.75246,2657.6,2657.3,0.75252]
[1739477751411,0.75249,2657.5,2657.3,3.2078]
[1739477751611,7.6564997,2658.0,2657.3,3.2078]
[1739477751813,0.75244,2657.7,2657.4,0.75249]
[1739477752005,0.75805501,2657.7,2657.4,0.75249]
[1739477752312,0.7525,2657.4,2657.3,3.2078]
[1739477752512,0.00561501,2657.7,2657.3,3.2078]
[1739477752706,0.00561501,2657.7,2657.2,3.96035]
[1739477753108,0.7525,2657.5,2657.2,3.96035]
[1739477753415,0.75252,2657.4,2657.2,3.2078]
[1739477753607,0.75253,2657.3,2657.2,3.2078]
[1739477754010,0.75256,2657.2,2657.1,0.00564079]
[1739477757209,0.5766,2657.3,2657.1,0.00564079]
[1739477757516,0.75255,2657.3,2657.1,0.75821079]
[1739477757712,0.75256,2657.2,2657.1,0.75821079]
[1739477757919,0.75256,2657.2,2657.1,0.00564079]
[1739477762217,0.75273,2656.6,2656.5,3.96053]
[1739477762416,0.75271,2656.7,2656.5,3.2078]
[1739477762720,0.75271,2656.7,2656.6,0.7527]
[1739477763311,0.75268,2656.8,2656.7,0.75267]
[1739477763716,0.75267,2656.9,2656.8,0.75266]
[1739477764222,1.88143,2657.2,2656.5,3.2078]
[1739477764421,0.75269,2656.8,2656.7,0.75268]
[1739477765317,3.2078,2657.4,2656.5,3.2078]
[1739477765522,0.75256,2657.3,2657.2,0.75253]
[1739477765824,0.75258,2657.2,2657.1,0.75256]
[1739477766023,0.59041501,2657.7,2657.0,3.2078]
[1739477766219,0.00561501,2657.7,2657.3,3.2078]
[1739477766524,0.75246,2657.6,2657.4,0.75249]
[1739477766712,0.75246,2657.6,2657.5,1.175]
[1739477766916,0.75246,2657.6,2657.5,1.7533]
[1739477768325,1.88670501,2657.7,2657.3,3.2078]
[1739477768522,1.88119,2657.5,2657.0,3.2078]
[1739477768722,0.75259,2657.1,2657.0,3.2078]
[1739477769523,5.08899,2657.5,2656.8,1.7001]
[1739477769725,5.08899,2657.5,2656.7,3.2078]
[1739477769726,1.88133,2657.3,2656.7,3.2078]
[1739477770028,0.75267,2656.8,2656.7,3.2078]
[1739477770425,0.75273,2656.6,2656.5,0.75274]
[1739477770830,1.88158,2657.0,2656.4,5.08061079]
[1739477771031,0.75274,2656.6,2656.5,0.75275]
[1739477771932,0.5425,2657.1,2656.4,4.32784079]
[1739477772128,0.7527,2656.8,2656.6,0.7527]
[1739477772323,0.5425,2657.1,2656.7,3.2078]
[1739477772525,0.75267,2656.8,2656.7,3.2078]
[1739477772725,0.75267,2656.8,2656.7,3.9605]
[1739477773226,0.75265,2656.9,2656.8,0.75266]
[1739477773526,0.5425,2657.1,2656.7,3.2078]
[1739477773727,3.2078,2657.2,2656.7,3.2078]
[1739477773925,0.7526,2657.1,2657.0,0.75259]
[1739477774325,3.2078,2657.2,2656.7,3.2078]
[1739477774529,5.08924,2657.2,2656.7,3.2078]
[1739477774724,0.75267,2656.8,2656.7,3.2078]
[1739477776037,0.75267,2656.8,2656.4,1.12004079]
[1739477776038,0.75276,2656.5,2656.4,5.08060079]
[1739477776435,0.75276,2656.5,2656.4,4.32784079]
[1739477776732,0.75276,2656.5,2656.4,5.08062079]
[1739477776935,0.75276,2656.5,2656.4,4.32784079]
[1739477777522,0.75276,2656.5,2656.4,5.08062079]
[1739477777929,0.75276,2656.5,2656.4,4.32784079]
[1739477778337,0.75276,2656.5,2656.4,5.08062079]
[1739477778534,0.75376,2656.5,2656.4,5.08061079]
[1739477778738,0.001,2656.5,2656.4,5.08061079]
[1739477778930,0.75376,2656.5,2656.4,3.77814079]
[1739477779127,0.75376,2656.5,2656.4,0.00564079]
[1739477779636,0.75376,2656.5,2656.4,0.75842079]
[1739477780024,0.001,2656.5,2656.4,0.75842079]
[1739477780430,0.75376,2656.5,2656.4,0.75842079]
[1739477781437,0.75376,2656.5,2656.4,3.96622079]
[1739477781637,0.75376,2656.5,2656.4,3.21344079]
[1739477782235,0.001,2656.5,2656.4,3.96622079]
[1739477782434,0.75252,2657.4,2656.5,1.88188]
[1739477782634,5.0888,2657.8,2656.5,1.88188]
[1739477782635,1.1547,2657.6,2657.1,3.2078]
[1739477782830,1.88119,2657.5,2657.1,3.2078]
[1739477783036,0.75256,2657.2,2657.1,3.96039]
[1739477783232,0.75256,2657.2,2657.1,3.2078]
[1739477784248,0.75256,2657.3,2657.1,3.2078]
[1739477784437,0.75256,2657.3,2657.2,0.75254]
[1739477784637,6.38064599,2657.6,2657.1,3.2078]
[1739477784938,0.75256,2657.2,2657.1,3.96039]
[1739477785243,0.75256,2657.2,2657.1,3.2078]
[1739477787247,0.75264,2656.9,2656.8,3.2078]
[1739477787548,2.46637,2657.1,2656.6,0.5799]
[1739477787742,2.46637,2657.1,2656.6,1.33263]
[1739477787743,0.7527,2656.7,2656.6,1.33263]
[1739477787938,0.75276,2656.5,2656.4,3.21344079]
[1739477788140,3.2078,2656.9,2656.4,0.00564079]
[1739477788444,3.2078,2656.9,2656.4,5.09538079]
[1739477788645,0.7527,2656.8,2656.7,0.75269]
[1739477788842,0.75266,2656.9,2656.8,0.75265]
[1739477789242,1.32762,2657.0,2656.9,0.75264]
[1739477789445,0.575,2657.0,2656.7,3.2078]
[1739477789648,0.75267,2656.8,2656.7,3.96048]
[1739477790239,0.75266,2656.9,2656.8,0.75264]
[1739477790841,0.75267,2656.8,2656.7,3.96049]
[1739477791247,0.75267,2656.8,2656.7,3.9605]
[1739477792354,0.75267,2656.8,2656.7,3.2078]
[1739477792647,0.75267,2656.8,2656.7,3.9605]
[1739477792848,0.75267,2656.8,2656.7,3.2078]
[1739477793850,0.75267,2656.8,2656.7,3.9605]
[1739477794151,0.75267,2656.9,2656.8,0.75265]
[1739477794343,0.575,2657.0,2656.7,3.2078]
[1739477794543,0.75267,2656.9,2656.8,0.75265]
[1739477795038,0.575,2657.0,2656.7,3.2078]
[1739477795239,0.75267,2656.8,2656.7,3.96048]
[1739477796449,0.75267,2656.8,2656.7,3.9605]
[1739477796652,2.45656,2657.0,2656.6,0.5629]
[1739477796950,0.7527,2656.7,2656.6,0.5629]
[1739477797146,0.7527,2656.7,2656.6,1.31563]
[1739477797648,0.7527,2656.7,2656.6,0.5629]
[1739477798451,0.7527,2656.7,2656.4,3.21344079]
[1739477798452,0.75276,2656.5,2656.4,3.96619079]
[1739477800044,0.75276,2656.5,2656.4,3.21344079]
[1739477800558,0.75276,2656.5,2656.4,3.96622079]
[1739477801051,0.75276,2656.5,2656.4,0.75842079]
[1739477801449,0.75276,2656.5,2656.4,0.00564079]
[1739477806948,0.75276,2656.5,2656.4,0.75842079]
[1739477807149,0.75276,2656.5,2656.4,0.00564079]
[1739477807344,1.33906,2656.5,2656.4,0.00564079]
[1739477811754,1.33906,2656.5,2656.4,0.75842079]
[1739477812455,7.69216599,2657.0,2656.4,0.75842079]
[1739477812456,3.2078,2657.1,2656.5,1.8819]
[1739477812756,3.2078,2657.1,2656.4,3.21344079]
[1739477812757,0.7527,2656.7,2656.6,2.50752]
[1739477813157,7.11120599,2657.1,2656.4,3.21344079]
[1739477813355,7.11120599,2657.1,2656.4,3.96622079]
[1739477813356,0.75276,2656.5,2656.4,3.96622079]
[1739477813857,0.75276,2656.5,2656.4,0.00564079]
[1739477814255,0.75276,2656.5,2656.4,0.75842079]
[1739477814850,0.75276,2656.5,2656.4,0.00564079]
[1739477815050,0.75276,2656.5,2656.4,0.75840079]
[1739477815754,0.5605,2656.6,2656.4,0.00564079]
[1739477815960,1.31324,2656.6,2656.5,0.75276]
[1739477816666,0.5605,2656.6,2656.5,0.75276]
[1739477817165,1.31323,2656.6,2656.5,0.75276]
[1739477817363,0.5605,2656.6,2656.5,1.32886]
[1739477817961,1.31323,2656.6,2656.5,1.32886]
[1739477818157,0.5605,2656.6,2656.5,1.32886]
[1739477818358,1.31323,2656.6,2656.5,1.32886]
[1739477818863,0.5605,2656.6,2656.5,1.32886]
[1739477819259,1.31323,2656.6,2656.5,0.5761]
[1739477819959,0.5605,2656.6,2656.5,1.32886]
[1739477821163,3.2078,2657.1,2656.5,0.5761]
[1739477821359,0.75267,2656.9,2656.8,0.75263]
[1739477821959,0.75267,2656.9,2656.5,2.45799]
[1739477821960,3.2078,2657.1,2656.7,3.2078]
[1739477822267,0.75252,2657.4,2657.3,0.75251]
[1739477822565,0.5829,2657.6,2657.0,3.2078]
[1739477822770,0.75255,2657.3,2657.2,0.75252]
[1739477822964,0.5829,2657.6,2657.1,1.1237]
[1739477823263,0.75249,2657.5,2657.4,0.75249]
[1739477824066,0.5829,2657.6,2657.1,1.1237]
[1739477824365,3.21341501,2657.7,2657.1,1.1237]
[1739477824667,0.75247,2657.6,2657.4,0.75248]
[1739477824860,0.00561501,2657.7,2657.3,3.807]
[1739477825163,0.00561501,2657.7,2657.6,3.96024]
[1739477825364,19.90371246,2660.1,2657.6,3.96024]
[1739477825365,1.31517,2658.6,2658.4,0.7522]
[1739477825560,1.31518,2658.6,2658.3,0.75223]
[1739477825761,0.563,2658.6,2658.2,3.2078]
[1739477825960,0.563,2658.6,2658.3,0.575]
[1739477826160,0.7522,2658.5,2658.3,0.575]
[1739477826366,0.563,2658.6,2658.3,0.575]
[1739477826563,0.7522,2658.5,2658.3,0.575]
[1739477826762,0.563,2658.6,2658.3,0.575]
[1739477826962,0.75219,2658.5,2658.3,0.575]
[1739477827162,0.563,2658.6,2658.3,0.575]
[1739477827358,0.7522,2658.5,2658.3,1.32724]
[1739477827763,0.75222,2658.4,2658.3,0.575]
[1739477827966,0.563,2658.6,2658.3,0.575]
[1739477828169,1.31517,2658.6,2658.4,0.75221]
[1739477828661,0.563,2658.6,2658.4,0.75221]
[1739477828867,1.31517,2658.6,2658.4,0.75221]
[1739477829169,1.31516,2658.6,2658.4,0.7522]
[1739477829572,0.563,2658.6,2658.3,0.575]
[1739477830069,0.00564079,2658.7,2658.6,0.75216]
[1739477831070,0.00564079,2658.7,2658.5,3.2078]
[1739477831370,0.75216,2658.6,2658.5,3.2078]
[1739477832463,0.75216,2658.6,2658.4,1.31091]
[1739477832464,3.34480599,2658.6,2658.3,0.575]
[1739477832667,0.75225,2658.3,2658.2,0.5992]
[1739477832978,0.75227,2658.2,2658.1,0.00564079]
[1739477833874,0.5692,2658.5,2658.1,0.00564079]
[1739477834068,3.96098,2658.6,2658.5,0.75219]
[1739477834270,3.2088,2658.6,2658.4,0.7522]
[1739477834577,0.75224,2658.4,2658.3,0.75225]
[1739477834869,0.75224,2658.4,2658.3,1.35275]
[1739477835069,3.2088,2658.6,2658.3,0.6005]
[1739477835266,0.7522,2658.5,2658.4,0.75221]
[1739477835669,0.75222,2658.4,2658.3,1.35274]
[1739477835866,0.75222,2658.4,2658.3,0.6005]
[1739477836465,0.75222,2658.4,2658.3,1.35275]
[1739477836671,0.75222,2658.4,2658.3,0.6005]
[1739477837170,0.7522,2658.5,2658.4,0.7522]
[1739477837471,0.75222,2658.4,2658.3,0.6005]
[1739477838471,0.75227,2658.2,2658.1,0.00564079]
[1739477841775,0.75247,2657.6,2657.5,0.75246]
[1739477842273,0.75247,2657.5,2657.4,3.96029]
[1739477842778,0.75245,2657.7,2657.6,0.75243]
[1739477843075,3.34480599,2657.9,2657.4,3.2078]
[1739477843276,3.2078,2658.4,2657.7,3.2078]
[1739477843582,0.75228,2658.3,2658.2,0.75226]
[1739477843768,0.75229,2658.2,2658.1,0.75229]
[1739477844276,0.7523,2658.1,2658.0,3.2078]
[1739477844667,0.7523,2658.2,2658.0,3.2078]
[1739477844873,0.5549,2658.3,2658.0,3.2078]
[1739477845279,0.75228,2658.2,2658.1,0.75228]
[1739477846178,0.5549,2658.3,2658.0,3.2078]
[1739477846365,0.75229,2658.2,2658.1,0.75227]
[1739477846565,1.30716,2658.3,2658.2,0.75227]
[1739477846770,0.5549,2658.3,2658.2,0.75227]
[1739477846969,0.5581,2658.5,2658.4,0.75222]
[1739477847170,0.5581,2658.5,2658.4,3.96002]
[1739477847367,0.001,2658.6,2658.5,0.75219]
[1739477847572,0.001,2658.6,2658.5,1.93999]
[1739477847972,0.75316,2658.6,2658.5,1.1878]
[1739477848179,0.75316,2658.6,2658.5,0.5988]
[1739477848880,0.75219,2658.5,2658.4,0.7522]
[1739477849178,0.75223,2658.4,2658.3,0.75222]
[1739477849379,1.1809,2658.6,2658.3,0.75223]
[1739477849579,0.75224,2658.4,2658.3,0.75223]
[1739477851184,1.1809,2658.6,2658.5,0.75219]
[1739477851378,0.001,2658.6,2658.5,3.95999]
[1739477857791,0.75316,2658.6,2658.5,3.95999]
[1739477858296,0.75225,2658.3,2658.2,3.7892]
[1739477858595,0.75225,2658.3,2658.2,3.2078]
[1739477859291,0.75225,2658.3,2658.2,3.96007]
[1739477859486,0.75225,2658.3,2658.2,3.2078]
[1739477860490,0.75225,2658.3,2658.2,3.96007]
[1739477861190,2.45191,2658.5,2657.9,3.2078]
[1739477861391,0.5895,2658.2,2657.9,3.2078]
[1739477861581,0.5895,2658.2,2658.1,0.7523]
[1739477861778,0.5714,2658.5,2658.4,0.75222]
[1739477861980,0.001,2658.6,2658.5,0.75219]
[1739477862187,0.001,2658.6,2658.5,2.45189]
[1739477865798,0.75316,2658.6,2658.5,0.75219]
[1739477866099,0.001,2658.6,2658.5,0.75219]
[1739477870289,0.75316,2658.6,2658.5,0.75219]
[1739477870493,1.33236,2658.6,2658.5,0.75219]
[1739477873202,0.5802,2658.6,2658.4,3.2078]
[1739477873406,1.31929,2658.5,2658.4,3.2078]
[1739477873604,1.31929,2658.5,2658.4,3.96002]
[1739477873896,1.31929,2658.5,2658.4,3.2078]
[1739477874203,1.31929,2658.5,2658.4,3.96002]
[1739477876402,1.31929,2658.5,2658.4,3.2078]
[1739477876604,0.75233,2658.1,2658.0,3.96011]
[1739477877597,1.88056,2658.4,2657.7,3.2078]
[1739477877802,0.75233,2658.1,2658.0,0.75232]
[1739477878208,1.88056,2658.4,2657.7,3.2078]
[1739477878502,1.31446,2658.0,2657.9,0.75233]
[1739477879006,1.31444,2658.0,2657.9,0.75236]
[1739477879598,0.75238,2657.9,2657.8,0.75236]
[1739477879806,1.31738,2657.9,2657.8,0.75236]
[1739477880206,0.565,2657.9,2657.7,3.2078]
[1739477880406,0.75239,2657.8,2657.7,3.96019]
[1739477880606,1.31738,2657.9,2657.8,0.75239]
[1739477880803,1.31736,2657.9,2657.8,0.75239]
[1739477881502,0.565,2657.9,2657.7,3.2078]
[1739477881696,1.31737,2657.9,2657.8,0.75239]
[1739477883310,0.75239,2657.8,2657.7,3.96021]
[1739477883504,0.75239,2657.8,2657.7,3.2078]
[1739477884201,0.565,2657.9,2657.7,3.2078]
[1739477884402,1.31739,2657.9,2657.8,0.75239]
[1739477884808,0.75239,2657.8,2657.7,3.96021]
[1739477885307,0.75239,2657.8,2657.7,3.96022]
[1739477885502,0.75239,2657.8,2657.7,3.2078]
[1739477886007,0.75239,2657.8,2657.7,3.96022]
[1739477886905,0.75239,2657.8,2657.7,3.2078]
[1739477887209,0.75239,2657.8,2657.7,3.96022]
[1739477887601,0.75239,2657.8,2657.7,3.2078]
[1739477887904,0.75239,2657.8,2657.7,3.96022]
[1739477888409,0.75239,2657.8,2657.7,3.2078]
[1739477889507,0.75239,2657.8,2657.7,3.96022]
[1739477890104,0.75239,2657.8,2657.7,3.2078]
[1739477890306,0.75239,2657.8,2657.7,3.96022]
[1739477891706,0.75239,2657.8,2657.7,3.2078]
[1739477892311,0.75239,2657.8,2657.7,3.96022]
[1739477892609,0.565,2657.9,2657.8,0.75239]
[1739477892814,1.31445,2658.0,2657.9,0.75236]
[1739477893108,0.5621,2658.0,2657.8,0.5697]
[1739477893306,1.31446,2658.0,2657.9,0.75236]
[1739477895008,0.5621,2658.0,2657.9,0.75236]
[1739477895215,0.001,2658.6,2658.5,0.75219]
[1739477895418,0.75319,2658.6,2658.5,0.75219]
[1739477895610,0.75219,2658.5,2658.4,3.2078]
[1739477895814,0.75222,2658.4,2658.3,3.7776]
[1739477896116,0.75222,2658.4,2658.3,0.5698]
[1739477896515,0.7523,2658.1,2658.0,4.9306]
[1739477896714,0.7523,2658.1,2658.0,5.68293]
[1739477897514,0.75229,2658.2,2658.1,0.75227]
[1739477897719,2.46872,2658.5,2658.0,4.9306]
[1739477898215,0.7523,2658.2,2658.1,0.75229]
[1739477899010,0.75227,2658.3,2658.2,0.75224]
[1739477899412,0.7523,2658.2,2658.1,0.75228]
[1739477901109,0.001,2658.6,2658.0,4.9306]
[1739477901414,0.75227,2658.3,2658.2,0.75225]
[1739477901916,0.001,2658.6,2658.0,6.81143]
[1739477902110,0.75226,2658.4,2658.3,0.75221]
[1739477902317,0.7523,2658.2,2658.1,0.75227]
[1739477903317,0.75227,2658.3,2658.2,0.75224]
[1739477903512,0.001,2658.6,2658.0,4.9306]
[1739477903719,0.001,2658.6,2658.5,0.75219]
[1739477903914,0.001,2658.6,2658.5,1.86329]
[1739477904119,0.001,2658.6,2658.5,2.45949]
[1739477904419,0.75316,2658.6,2658.5,2.45949]
[1739477904619,0.001,2658.6,2658.5,2.45949]
[1739477905411,0.00564079,2658.7,2658.6,0.75216]
[1739477905915,0.75195,2659.4,2659.3,0.75196]
[1739477906107,4.3717,2659.6,2659.1,3.2078]
[1739477906418,0.75197,2659.3,2659.2,1.91178]
[1739477906606,4.3717,2659.6,2659.2,1.1598]
[1739477906806,0.75195,2659.4,2659.3,0.75194]
[1739477907919,0.00564079,2659.6,2659.5,0.75191]
[1739477908120,0.00564079,2659.6,2659.2,1.1598]
[1739477908121,0.75191,2659.5,2659.4,3.95973]
[1739477908312,0.00564079,2659.6,2659.4,3.95973]
[1739477908313,0.00564079,2659.6,2659.5,0.75191]
[1739477909006,0.5538,2660.1,2659.8,0.75181]
[1739477909419,0.75179,2659.9,2659.8,0.75181]
[1739477909618,0.5538,2660.1,2659.7,3.2078]
[1739477909813,0.75176,2660.1,2659.9,0.75178]
[1739477910016,3.34480599,2660.6,2660.0,3.95955]
[1739477910219,0.06139992,2660.5,2660.0,3.2078]
[1739477910516,0.75174,2660.1,2660.0,3.2078]
[1739477910916,0.5841,2660.4,2660.0,3.2078]
[1739477911113,0.75171,2660.2,2660.1,0.5618]
[1739477911611,0.75179,2659.9,2659.8,0.5665]
[1739477912313,0.75183,2659.8,2659.6,0.75186]
[1739477912511,0.75187,2659.7,2659.5,1.90779]
[1739477912720,1.135,2660.2,2659.5,1.1559]
[1739477912919,0.75179,2659.9,2659.8,0.7518]
[1739477913125,0.75179,2659.9,2659.5,1.1559]
[1739477913623,1.135,2660.2,2659.9,0.75179]
[1739477913918,3.34480599,2660.6,2659.8,3.2078]
[1739477914125,0.75171,2660.3,2660.1,0.75172]
[1739477914317,0.5541,2660.4,2660.0,1.1559]
[1739477914616,0.75174,2660.1,2660.0,1.1559]
[1739477915225,0.75174,2660.1,2660.0,1.90767]
[1739477915420,3.34480599,2660.3,2659.8,3.2078]
[1739477915727,0.75187,2659.7,2659.6,0.75188]
[1739477916024,5.22405599,2660.3,2659.5,1.7155]
[1739477916216,0.75182,2659.8,2659.7,0.75183]
[1739477916417,0.5813,2660.0,2659.5,1.7155]
[1739477916618,0.75182,2659.8,2659.6,0.75185]
[1739477916917,0.75182,2659.8,2659.7,0.75185]
[1739477917526,0.75187,2659.7,2659.6,0.75187]
[1739477918023,0.75188,2659.6,2659.5,1.7155]
[1739477918220,3.34480599,2659.7,2659.1,3.21344079]
[1739477918420,0.75199,2659.2,2659.1,4.52085079]
[1739477918625,0.75188,2659.6,2659.5,0.75189]
[1739477918921,3.7528,2659.9,2659.1,3.76884079]
[1739477919123,0.75191,2659.6,2659.5,0.75189]
[1739477919328,0.545,2659.9,2659.4,3.2078]
[1739477919625,0.75191,2659.5,2659.4,3.95971]
[1739477920129,4.5046,2659.9,2659.8,0.75182]
[1739477920422,0.545,2659.9,2659.8,0.75182]
[1739477920823,1.2968,2659.9,2659.8,0.75182]
[1739477921031,0.545,2659.9,2659.8,0.75182]
[1739477921223,0.5813,2660.0,2659.7,3.2078]
[1739477921422,0.7518,2659.9,2659.8,0.75179]
[1739477921624,0.75181,2659.9,2659.8,0.75179]
[1739477922922,0.75182,2659.8,2659.7,3.2078]
[1739477923625,0.75185,2659.7,2659.6,1.35247]
[1739477924325,0.75185,2659.7,2659.6,0.6006]
[1739477924523,0.75185,2659.7,2659.6,1.35248]
[1739477925729,0.75185,2659.7,2659.6,0.6006]
[1739477926031,0.75185,2659.8,2659.7,0.75183]
[1739477926824,2.46074,2660.0,2659.6,0.6006]
[1739477926825,0.75185,2659.7,2659.6,0.6006]
[1739477927729,0.75185,2659.7,2659.6,1.35248]
[1739477928136,0.75185,2659.8,2659.7,0.75183]
[1739477928332,0.75185,2659.8,2659.7,0.74937151]
[1739477929337,0.75183,2659.9,2659.8,0.7518]
[1739477929935,1.1162,2660.1,2659.7,3.2078]
[1739477930126,0.75182,2659.8,2659.7,3.95962]
[1739477930434,0.75182,2659.8,2659.7,0.75182]
[1739477931431,1.87945,2660.0,2659.6,0.6006]